[Event "*** MasterClass Titled Tuesday Blitz"]
[Site "Chess.com"]
[Date "2017.09.05"]
[Round "8"]
[White "dolynachess"]
[Black "stefanodinn"]
[Result "1-0"]
[WhiteElo "2398"]
[BlackElo "2198"]
[TimeControl "180+2"]
[EndTime "14:58:11 PDT"]
[Termination "dolynachess won on time"]

1. c4 {[%clk 0:03:01.9]} 1... e6 {[%clk 0:02:59.1]} 2. g3 {[%clk 0:03:02.1]}
2... d5 {[%clk 0:02:59.3]} 3. Bg2 {[%clk 0:03:03.7]} 3... Nf6 {[%clk 0:02:59.8]}
4. d4 {[%clk 0:03:04.1]} 4... Bb4+ {[%clk 0:02:59.1]} 5. Bd2 {[%clk 0:03:04.2]}
5... Be7 {[%clk 0:02:59.6]} 6. Nf3 {[%clk 0:03:04.3]} 6... O-O {[%clk
0:02:58.9]} 7. O-O {[%clk 0:03:02.4]} 7... Nbd7 {[%clk 0:02:58.3]} 8. b3 {[%clk
0:02:49]} 8... c6 {[%clk 0:02:54.7]} 9. Nc3 {[%clk 0:02:49.3]} 9... b6 {[%clk
0:02:55.4]} 10. Re1 {[%clk 0:02:46.5]} 10... Ba6 {[%clk 0:02:52.9]} 11. Ne5
{[%clk 0:02:39.3]} 11... Nxe5 {[%clk 0:02:34.1]} 12. dxe5 {[%clk 0:02:41.2]}
12... Ng4 {[%clk 0:02:10.1]} 13. cxd5 {[%clk 0:02:21.1]} 13... cxd5 {[%clk
0:02:05]} 14. e4 {[%clk 0:02:22.1]} 14... Nxe5 {[%clk 0:02:03.4]} 15. exd5
{[%clk 0:02:22.4]} 15... Nd3 {[%clk 0:02:02.3]} 16. dxe6 {[%clk 0:02:17.1]}
16... Nxe1 {[%clk 0:01:52.6]} 17. Qxe1 {[%clk 0:02:08.6]} 17... Rc8 {[%clk
0:01:35.2]} 18. exf7+ {[%clk 0:02:09.1]} 18... Kh8 {[%clk 0:01:35.3]} 19. Bd5
{[%clk 0:01:44.6]} 19... Bb4 {[%clk 0:01:07.5]} 20. Rd1 {[%clk 0:01:38.8]} 20...
Rc5 {[%clk 0:00:44.2]} 21. Be6 {[%clk 0:01:19.2]} 21... Rc6 {[%clk 0:00:14.7]}
22. Nd5 {[%clk 0:00:27]} 22... Bxd2 {[%clk 0:00:12.8]} 23. Rxd2 {[%clk
0:00:28.9]} 23... Rd6 {[%clk 0:00:13]} 24. Rd1 {[%clk 0:00:25.9]} 24... Bb7
{[%clk 0:00:12.8]} 25. Nc3 {[%clk 0:00:24.9]} 25... Rxd1 {[%clk 0:00:09.1]} 26.
Nxd1 {[%clk 0:00:23.7]} 26... Qe7 {[%clk 0:00:09.2]} 27. Qe3 {[%clk 0:00:21.4]}
27... Qc7 {[%clk 0:00:04.4]} 28. Nc3 {[%clk 0:00:21.5]} 28... Qc6 {[%clk
0:00:04.4]} 29. Nd5 {[%clk 0:00:20.6]} 29... h6 {[%clk 0:00:03.7]} 30. h4 {[%clk
0:00:21.4]} 30... Kh7 {[%clk 0:00:03.3]} 31. Qe4+ {[%clk 0:00:21.9]} 31... Kh8
{[%clk 0:00:04.5]} 32. Kh2 {[%clk 0:00:23]} 32... Ba8 {[%clk 0:00:04.1]} 33. Qe5
{[%clk 0:00:23.6]} 33... Bb7 {[%clk 0:00:04]} 34. h5 {[%clk 0:00:23.3]} 34...
Kh7 {[%clk 0:00:04.4]} 35. Bf5+ {[%clk 0:00:19.9]} 35... Kh8 {[%clk 0:00:05.5]}
36. Be6 {[%clk 0:00:20.4]} 36... Bc8 {[%clk 0:00:06.1]} 37. a4 {[%clk
0:00:21.9]} 37... Bxe6 {[%clk 0:00:06.6]} 38. Ne7 {[%clk 0:00:18.4]} 38... Qd7
{[%clk 0:00:07.1]} 39. Ng6+ {[%clk 0:00:17.5]} 1-0

[Event "*** MasterClass Titled Tuesday Blitz"]
[Site "Chess.com"]
[Date "2017.09.05"]
[Round "8"]
[White "novocane"]
[Black "biostatistician"]
[Result "0-1"]
[WhiteElo "2164"]
[BlackElo "2434"]
[TimeControl "180+2"]
[EndTime "14:58:18 PDT"]
[Termination "biostatistician won by resignation"]

1. d4 {[%clk 0:02:59]} 1... Nf6 {[%clk 0:03:00.3]} 2. c4 {[%clk 0:02:59.5]} 2...
g6 {[%clk 0:03:01.2]} 3. Nc3 {[%clk 0:03:00]} 3... Bg7 {[%clk 0:03:03.1]} 4. e4
{[%clk 0:03:00.8]} 4... d6 {[%clk 0:03:02.2]} 5. f3 {[%clk 0:03:01.3]} 5... O-O
{[%clk 0:03:03.7]} 6. Be3 {[%clk 0:03:02.1]} 6... c5 {[%clk 0:03:05.2]} 7. d5
{[%clk 0:02:59.1]} 7... e6 {[%clk 0:03:04.9]} 8. Nge2 {[%clk 0:02:57.6]} 8... a6
{[%clk 0:03:02.4]} 9. a4 {[%clk 0:02:58.1]} 9... exd5 {[%clk 0:03:02.1]} 10.
cxd5 {[%clk 0:02:58.6]} 10... Nbd7 {[%clk 0:03:02.9]} 11. Ng3 {[%clk 0:02:58.3]}
11... Ne5 {[%clk 0:03:01.2]} 12. Be2 {[%clk 0:02:57]} 12... h5 {[%clk
0:03:02.2]} 13. O-O {[%clk 0:02:57.2]} 13... h4 {[%clk 0:03:03.3]} 14. Nh1
{[%clk 0:02:58.3]} 14... Bd7 {[%clk 0:02:59.4]} 15. Nf2 {[%clk 0:02:42.2]} 15...
b5 {[%clk 0:02:59.6]} 16. axb5 {[%clk 0:02:40.3]} 16... axb5 {[%clk 0:03:01.5]}
17. Rxa8 {[%clk 0:02:33.5]} 17... Qxa8 {[%clk 0:03:01.5]} 18. Bxb5 {[%clk
0:02:33.8]} 18... Bxb5 {[%clk 0:03:01.4]} 19. Nxb5 {[%clk 0:02:34.9]} 19... Nc4
{[%clk 0:02:58.8]} 20. Bg5 {[%clk 0:02:25.9]} 20... Qb8 {[%clk 0:02:53.1]} 21.
b3 {[%clk 0:02:04.1]} 21... Qxb5 {[%clk 0:02:45.9]} 22. bxc4 {[%clk 0:02:04.5]}
22... Qxc4 {[%clk 0:02:47.8]} 23. Bxh4 {[%clk 0:02:03.7]} 23... Nh5 {[%clk
0:02:48.9]} 24. Ng4 {[%clk 0:01:40.6]} 24... Ra8 {[%clk 0:02:08.1]} 25. Qc1
{[%clk 0:01:21.9]} 25... Qd3 {[%clk 0:01:34.9]} 26. Rd1 {[%clk 0:01:17.3]} 26...
Qe2 {[%clk 0:01:29.6]} 27. Rd2 {[%clk 0:01:12.6]} 27... Nf4 {[%clk 0:01:14.2]}
28. Bf2 {[%clk 0:00:54.1]} 28... Qb5 {[%clk 0:01:03]} 29. Qe1 {[%clk 0:00:31.1]}
29... Bc3 {[%clk 0:00:45.4]} 30. Be3 {[%clk 0:00:32]} 30... Ra1 {[%clk
0:00:42.3]} 31. Qxa1 {[%clk 0:00:29.7]} 31... Bxa1 {[%clk 0:00:44.2]} 32. Bxf4
{[%clk 0:00:31.1]} 32... Bc3 {[%clk 0:00:40.7]} 33. Rd1 {[%clk 0:00:28.9]} 33...
Qe2 {[%clk 0:00:39.7]} 34. Rb1 {[%clk 0:00:30]} 34... Bd4+ {[%clk 0:00:38.5]}
35. Kh1 {[%clk 0:00:30.6]} 35... c4 {[%clk 0:00:39.6]} 36. h4 {[%clk 0:00:09.8]}
36... c3 {[%clk 0:00:40.6]} 37. Rb8+ {[%clk 0:00:09.2]} 37... Kg7 {[%clk
0:00:35.4]} 38. e5 {[%clk 0:00:10.5]} 38... Bxe5 {[%clk 0:00:30.6]} 39. Bh6+
{[%clk 0:00:09.4]} 39... Kh7 {[%clk 0:00:30.4]} 40. Nxe5 {[%clk 0:00:08.9]}
40... Kxh6 {[%clk 0:00:21.2]} 41. Nxf7+ {[%clk 0:00:09.5]} 41... Kg7 {[%clk
0:00:22.5]} 42. Ng5 {[%clk 0:00:10.5]} 42... c2 {[%clk 0:00:22.2]} 43. Rb7+
{[%clk 0:00:11.7]} 43... Kf8 {[%clk 0:00:22.4]} 44. Rf7+ {[%clk 0:00:11.8]}
44... Ke8 {[%clk 0:00:23.3]} 0-1

[Event "*** MasterClass Titled Tuesday Blitz"]
[Site "Chess.com"]
[Date "2017.09.05"]
[Round "8"]
[White "Scott-fox21"]
[Black "Darkbluelord"]
[Result "1-0"]
[WhiteElo "2188"]
[BlackElo "2129"]
[TimeControl "180+2"]
[EndTime "14:58:24 PDT"]
[Termination "Scott-fox21 won by resignation"]

1. d4 {[%clk 0:03:02]} 1... Nf6 {[%clk 0:02:54.7]} 2. c4 {[%clk 0:03:02.6]} 2...
c5 {[%clk 0:02:54.8]} 3. d5 {[%clk 0:03:03.4]} 3... b5 {[%clk 0:02:54.5]} 4.
cxb5 {[%clk 0:03:04.6]} 4... a6 {[%clk 0:02:54.8]} 5. bxa6 {[%clk 0:03:05.9]}
5... Bxa6 {[%clk 0:02:55.3]} 6. Nc3 {[%clk 0:03:07.5]} 6... d6 {[%clk
0:02:55.7]} 7. e4 {[%clk 0:03:08.3]} 7... Bxf1 {[%clk 0:02:55.4]} 8. Kxf1 {[%clk
0:03:10.3]} 8... Nbd7 {[%clk 0:02:55.4]} 9. g3 {[%clk 0:03:09.4]} 9... g6 {[%clk
0:02:56.7]} 10. Kg2 {[%clk 0:03:10.7]} 10... Bg7 {[%clk 0:02:57.3]} 11. Nf3
{[%clk 0:03:12.2]} 11... O-O {[%clk 0:02:58.1]} 12. a4 {[%clk 0:03:12.6]} 12...
Qb6 {[%clk 0:02:55.8]} 13. Qe2 {[%clk 0:02:56.5]} 13... Qb3 {[%clk 0:02:28]} 14.
Nd2 {[%clk 0:02:52.8]} 14... Qc2 {[%clk 0:02:25.1]} 15. Re1 {[%clk 0:02:29.3]}
15... Ne5 {[%clk 0:02:22.4]} 16. Nf3 {[%clk 0:02:12.4]} 16... Qxe2 {[%clk
0:02:01.7]} 17. Rxe2 {[%clk 0:02:14.4]} 17... Nd3 {[%clk 0:02:01.3]} 18. Bg5
{[%clk 0:01:46]} 18... Rfb8 {[%clk 0:01:59.2]} 19. Nb5 {[%clk 0:01:42.5]} 19...
Rxb5 {[%clk 0:01:52.4]} 20. Rd2 {[%clk 0:00:54.3]} 20... Rb3 {[%clk 0:01:27.3]}
21. Rad1 {[%clk 0:00:43.8]} 21... c4 {[%clk 0:01:01.5]} 22. Rc2 {[%clk 0:00:37]}
22... Nxe4 {[%clk 0:00:50.6]} 23. Bxe7 {[%clk 0:00:33.7]} 23... Nxb2 {[%clk
0:00:40]} 24. Re1 {[%clk 0:00:34]} 24... f5 {[%clk 0:00:36.8]} 25. Ng1 {[%clk
0:00:26.6]} 25... Ra7 {[%clk 0:00:31.8]} 26. Bd8 {[%clk 0:00:22.2]} 26... Rxa4
{[%clk 0:00:20.1]} 27. f3 {[%clk 0:00:21.4]} 27... Nf6 {[%clk 0:00:20.1]} 28.
Re6 {[%clk 0:00:18.5]} 28... Kf7 {[%clk 0:00:18.8]} 29. Rxd6 {[%clk 0:00:18.7]}
29... Bf8 {[%clk 0:00:15.1]} 30. Rxf6+ {[%clk 0:00:17.8]} 30... Ke8 {[%clk
0:00:14.5]} 31. Bc7 {[%clk 0:00:17.1]} 31... Nd3 {[%clk 0:00:08.9]} 32. Re2+
{[%clk 0:00:17.5]} 32... Be7 {[%clk 0:00:08]} 33. Rfe6 {[%clk 0:00:18.1]} 33...
Rb2 {[%clk 0:00:01.8]} 34. Rxe7+ {[%clk 0:00:18.9]} 34... Kf8 {[%clk 0:00:02.1]}
35. d6 {[%clk 0:00:18.7]} 35... Rxe2+ {[%clk 0:00:01.9]} 36. Nxe2 {[%clk
0:00:20]} 36... Nc5 {[%clk 0:00:03.5]} 37. Re5 {[%clk 0:00:20.3]} 37... Nd7
{[%clk 0:00:05.2]} 38. Re7 {[%clk 0:00:20.7]} 38... Ra2 {[%clk 0:00:05.8]} 39.
Kf1 {[%clk 0:00:19.7]} 39... Nc5 {[%clk 0:00:04.9]} 40. Rxh7 {[%clk 0:00:18.7]}
40... Nd3 {[%clk 0:00:04.9]} 41. d7 {[%clk 0:00:19.4]} 41... Ra1+ {[%clk
0:00:04.3]} 42. Kg2 {[%clk 0:00:20.4]} 42... Ne1+ {[%clk 0:00:04.7]} 43. Kh3
{[%clk 0:00:21.2]} 43... Ra8 {[%clk 0:00:06]} 44. d8=Q+ {[%clk 0:00:22]} 1-0

[Event "*** MasterClass Titled Tuesday Blitz"]
[Site "Chess.com"]
[Date "2017.09.05"]
[Round "8"]
[White "MartinMatthiesen"]
[Black "Bengalas"]
[Result "1/2-1/2"]
[WhiteElo "2321"]
[BlackElo "2498"]
[TimeControl "180+2"]
[EndTime "14:58:35 PDT"]
[Termination "Game drawn by repetition"]

1. d4 {[%clk 0:03:01.9]} 1... Nf6 {[%clk 0:02:59.3]} 2. c4 {[%clk 0:03:02.2]}
2... e6 {[%clk 0:02:56.5]} 3. Nf3 {[%clk 0:03:01.8]} 3... b6 {[%clk 0:02:54.6]}
4. g3 {[%clk 0:03:01.5]} 4... Bb7 {[%clk 0:02:53.4]} 5. Bg2 {[%clk 0:03:01.5]}
5... Be7 {[%clk 0:02:53.7]} 6. O-O {[%clk 0:03:02]} 6... O-O {[%clk 0:02:55.2]}
7. Nc3 {[%clk 0:03:00.8]} 7... Ne4 {[%clk 0:02:56]} 8. Bd2 {[%clk 0:03:01.1]}
8... d6 {[%clk 0:02:54.5]} 9. Rc1 {[%clk 0:02:47]} 9... Nxd2 {[%clk 0:02:49.3]}
10. Qxd2 {[%clk 0:02:45.1]} 10... Nd7 {[%clk 0:02:50.2]} 11. e4 {[%clk 0:02:41]}
11... Bf6 {[%clk 0:02:30.4]} 12. Rfe1 {[%clk 0:02:14.4]} 12... e5 {[%clk
0:02:30.9]} 13. d5 {[%clk 0:02:11.9]} 13... a5 {[%clk 0:02:31.2]} 14. Qc2 {[%clk
0:01:52.8]} 14... g6 {[%clk 0:02:29.8]} 15. a3 {[%clk 0:01:50.9]} 15... Ba6
{[%clk 0:02:13.4]} 16. Nb5 {[%clk 0:01:25.5]} 16... Bg7 {[%clk 0:01:40.6]} 17.
Bh3 {[%clk 0:01:19.2]} 17... Bh6 {[%clk 0:01:26.4]} 18. Rb1 {[%clk 0:01:13.6]}
18... Bc8 {[%clk 0:00:55.6]} 19. b4 {[%clk 0:01:11.1]} 19... Kg7 {[%clk
0:00:53.4]} 20. Rf1 {[%clk 0:01:03.3]} 20... Ba6 {[%clk 0:00:29]} 21. Ne1 {[%clk
0:00:54.7]} 21... Bxb5 {[%clk 0:00:26.3]} 22. cxb5 {[%clk 0:00:54]} 22... Nf6
{[%clk 0:00:24.8]} 23. Rb3 {[%clk 0:00:49.5]} 23... Re8 {[%clk 0:00:25.1]} 24.
Rc3 {[%clk 0:00:49.5]} 24... Re7 {[%clk 0:00:26.1]} 25. f3 {[%clk 0:00:45.1]}
25... Ra7 {[%clk 0:00:20.9]} 26. Nd3 {[%clk 0:00:45.2]} 26... Be3+ {[%clk
0:00:20.5]} 27. Kh1 {[%clk 0:00:44.7]} 27... Bd4 {[%clk 0:00:21.7]} 28. Rc4
{[%clk 0:00:45.2]} 28... Qe8 {[%clk 0:00:20.7]} 29. bxa5 {[%clk 0:00:39.3]}
29... Qxb5 {[%clk 0:00:19.8]} 30. axb6 {[%clk 0:00:38.2]} 30... Qxb6 {[%clk
0:00:19.3]} 31. Ra4 {[%clk 0:00:23.3]} 31... Rxa4 {[%clk 0:00:18.7]} 32. Qxa4
{[%clk 0:00:23.7]} 32... h5 {[%clk 0:00:14.6]} 33. Qc2 {[%clk 0:00:24]} 33...
Nh7 {[%clk 0:00:14.4]} 34. Rb1 {[%clk 0:00:24.9]} 34... Qa7 {[%clk 0:00:15]} 35.
Bf1 {[%clk 0:00:22.9]} 35... Qxa3 {[%clk 0:00:15]} 36. Kg2 {[%clk 0:00:23.1]}
36... Qa7 {[%clk 0:00:15.5]} 37. h4 {[%clk 0:00:23.7]} 37... Nf6 {[%clk
0:00:15.6]} 38. Nb4 {[%clk 0:00:24.8]} 38... Re8 {[%clk 0:00:16.1]} 39. Nc6
{[%clk 0:00:25.7]} 39... Qc5 {[%clk 0:00:17.1]} 40. Qxc5 {[%clk 0:00:26.1]}
40... Bxc5 {[%clk 0:00:18.2]} 41. Rb7 {[%clk 0:00:25.6]} 41... Bb6 {[%clk
0:00:19.3]} 42. Nb4 {[%clk 0:00:26.6]} 42... Nd7 {[%clk 0:00:19.5]} 43. Na6
{[%clk 0:00:27.1]} 43... Rc8 {[%clk 0:00:16.6]} 44. Kh2 {[%clk 0:00:28.1]} 44...
Nc5 {[%clk 0:00:16]} 45. Nxc5 {[%clk 0:00:28.5]} 45... Bxc5 {[%clk 0:00:17.2]}
46. Bh3 {[%clk 0:00:29]} 46... Ra8 {[%clk 0:00:16.1]} 47. Rxc7 {[%clk
0:00:30.3]} 47... Ra2+ {[%clk 0:00:16.5]} 48. Kh1 {[%clk 0:00:31.4]} 48... Ra1+
{[%clk 0:00:17.3]} 49. Kg2 {[%clk 0:00:32.6]} 49... Ra2+ {[%clk 0:00:18]} 50.
Kh1 {[%clk 0:00:33.8]} 50... Ra1+ {[%clk 0:00:18.6]} 51. Kg2 {[%clk 0:00:34.9]}
51... Ra2+ {[%clk 0:00:19.1]} 52. Kh1 {[%clk 0:00:36]} 52... Ra1+ {[%clk
0:00:19.2]} 53. Kg2 {[%clk 0:00:36.3]} 53... Ra2+ {[%clk 0:00:19.6]} 1/2-1/2

[Event "*** MasterClass Titled Tuesday Blitz"]
[Site "Chess.com"]
[Date "2017.09.05"]
[Round "8"]
[White "Bad4life"]
[Black "AdrianaNikolova"]
[Result "1-0"]
[WhiteElo "2165"]
[BlackElo "2249"]
[TimeControl "180+2"]
[EndTime "14:58:40 PDT"]
[Termination "Bad4life won by checkmate"]

1. e4 {[%clk 0:03:01.8]} 1... c5 {[%clk 0:03:00]} 2. Nf3 {[%clk 0:03:02.8]} 2...
d6 {[%clk 0:03:01.3]} 3. d4 {[%clk 0:03:01.2]} 3... cxd4 {[%clk 0:03:03.2]} 4.
Nxd4 {[%clk 0:03:02]} 4... Nf6 {[%clk 0:03:04.6]} 5. Nc3 {[%clk 0:03:03.1]} 5...
a6 {[%clk 0:03:06]} 6. a3 {[%clk 0:03:04.4]} 6... e5 {[%clk 0:03:06]} 7. Nf5
{[%clk 0:03:05.4]} 7... Bxf5 {[%clk 0:03:06.4]} 8. exf5 {[%clk 0:03:07.3]} 8...
d5 {[%clk 0:03:07.8]} 9. Bg5 {[%clk 0:03:08.1]} 9... d4 {[%clk 0:03:07]} 10.
Bxf6 {[%clk 0:03:09.3]} 10... Qxf6 {[%clk 0:03:00.9]} 11. Nd5 {[%clk 0:03:02]}
11... Qc6 {[%clk 0:02:48.2]} 12. Qf3 {[%clk 0:02:56]} 12... Nd7 {[%clk
0:02:41.5]} 13. Bd3 {[%clk 0:02:42.9]} 13... Nc5 {[%clk 0:02:36.5]} 14. f6
{[%clk 0:02:15.8]} 14... Rd8 {[%clk 0:02:23.7]} 15. Bc4 {[%clk 0:01:35]} 15...
b5 {[%clk 0:02:10.1]} 16. Ba2 {[%clk 0:01:12.2]} 16... e4 {[%clk 0:01:34.5]} 17.
Qg3 {[%clk 0:01:08.6]} 17... gxf6 {[%clk 0:01:02.7]} 18. Nb4 {[%clk 0:00:20.1]}
18... Qd6 {[%clk 0:00:53.4]} 19. Qh4 {[%clk 0:00:20.3]} 19... Be7 {[%clk
0:00:42.8]} 20. O-O-O {[%clk 0:00:21.1]} 20... f5 {[%clk 0:00:41.5]} 21. Qh5
{[%clk 0:00:21.9]} 21... Qg6 {[%clk 0:00:38.7]} 22. Qe2 {[%clk 0:00:20.2]} 22...
Ne6 {[%clk 0:00:36.8]} 23. Nd5 {[%clk 0:00:19.2]} 23... Bg5+ {[%clk 0:00:36.3]}
24. Kb1 {[%clk 0:00:19.4]} 24... O-O {[%clk 0:00:37.7]} 25. h4 {[%clk
0:00:20.3]} 25... Bf6 {[%clk 0:00:38.5]} 26. h5 {[%clk 0:00:20.4]} 26... Qg4
{[%clk 0:00:39.3]} 27. f3 {[%clk 0:00:21]} 27... Qg5 {[%clk 0:00:37.5]} 28. h6
{[%clk 0:00:19.1]} 28... Nf4 {[%clk 0:00:34.8]} 29. Nxf4 {[%clk 0:00:09.5]}
29... Qxf4 {[%clk 0:00:37.1]} 30. fxe4 {[%clk 0:00:10.9]} 30... fxe4 {[%clk
0:00:31.7]} 31. Rdf1 {[%clk 0:00:12]} 31... Qe5 {[%clk 0:00:22.4]} 32. Rh5
{[%clk 0:00:11.8]} 32... Qe7 {[%clk 0:00:15]} 33. Qg4+ {[%clk 0:00:13.2]} 33...
Kh8 {[%clk 0:00:15.5]} 34. Rhf5 {[%clk 0:00:10.7]} 34... Rd6 {[%clk 0:00:11.6]}
35. Rxf6 {[%clk 0:00:09.5]} 35... Rg8 {[%clk 0:00:12.7]} 36. Qf4 {[%clk
0:00:08.2]} 36... Rxf6 {[%clk 0:00:08.2]} 37. Qxf6+ {[%clk 0:00:09.1]} 37...
Qxf6 {[%clk 0:00:09.6]} 38. Rxf6 {[%clk 0:00:11]} 38... Rxg2 {[%clk 0:00:10.8]}
39. Bxf7 {[%clk 0:00:12.3]} 39... Rg1+ {[%clk 0:00:10.1]} 40. Ka2 {[%clk
0:00:12.8]} 40... e3 {[%clk 0:00:06.5]} 41. Bb3 {[%clk 0:00:10.5]} 41... Rf1
{[%clk 0:00:04.6]} 42. Rxf1 {[%clk 0:00:10.7]} 42... e2 {[%clk 0:00:05.5]} 43.
Rf8# {[%clk 0:00:11.7]} 1-0

[Event "*** MasterClass Titled Tuesday Blitz"]
[Site "Chess.com"]
[Date "2017.09.05"]
[Round "8"]
[White "Tarlev_Konstantin"]
[Black "gammagramma"]
[Result "1-0"]
[WhiteElo "2599"]
[BlackElo "2357"]
[TimeControl "180+2"]
[EndTime "14:58:44 PDT"]
[Termination "Tarlev_Konstantin won by resignation"]

1. e4 {[%clk 0:03:01.9]} 1... e6 {[%clk 0:03:00.6]} 2. Nf3 {[%clk 0:03:03.2]}
2... c5 {[%clk 0:03:00.9]} 3. Nc3 {[%clk 0:03:04.2]} 3... Nc6 {[%clk 0:03:01.4]}
4. Bb5 {[%clk 0:03:04.3]} 4... Nge7 {[%clk 0:03:01.7]} 5. O-O {[%clk 0:03:04.8]}
5... a6 {[%clk 0:03:02.7]} 6. Bxc6 {[%clk 0:03:04.8]} 6... Nxc6 {[%clk
0:03:02.2]} 7. d4 {[%clk 0:03:06.7]} 7... cxd4 {[%clk 0:03:02.7]} 8. Nxd4 {[%clk
0:03:08.6]} 8... Bc5 {[%clk 0:03:00.5]} 9. Nxc6 {[%clk 0:03:03.5]} 9... dxc6
{[%clk 0:03:01]} 10. Qg4 {[%clk 0:03:03.7]} 10... O-O {[%clk 0:03:01]} 11. e5
{[%clk 0:03:03]} 11... f5 {[%clk 0:02:15.2]} 12. exf6 {[%clk 0:02:43.5]} 12...
Qxf6 {[%clk 0:02:11.1]} 13. Be3 {[%clk 0:02:43.1]} 13... Bxe3 {[%clk 0:02:02.6]}
14. fxe3 {[%clk 0:02:43.9]} 14... e5 {[%clk 0:02:03.3]} 15. Qb4 {[%clk
0:02:33.8]} 15... a5 {[%clk 0:01:50.9]} 16. Qc5 {[%clk 0:02:25.2]} 16... b6
{[%clk 0:01:39.3]} 17. Rxf6 {[%clk 0:02:17.8]} 17... bxc5 {[%clk 0:01:39.7]} 18.
Rxc6 {[%clk 0:02:19.4]} 18... Rb8 {[%clk 0:01:37.3]} 19. b3 {[%clk 0:02:18.2]}
19... Bf5 {[%clk 0:01:31.7]} 20. Rxc5 {[%clk 0:02:14.2]} 20... Bxc2 {[%clk
0:01:32.3]} 21. Rc1 {[%clk 0:02:05.2]} 21... Bd3 {[%clk 0:01:30.4]} 22. Rxe5
{[%clk 0:01:55.7]} 22... Rbc8 {[%clk 0:01:31.6]} 23. h3 {[%clk 0:01:57.2]} 23...
a4 {[%clk 0:01:31.1]} 24. b4 {[%clk 0:01:55.7]} 24... Rc4 {[%clk 0:01:27.2]} 25.
a3 {[%clk 0:01:54.7]} 25... Rfc8 {[%clk 0:01:26.8]} 26. Rc5 {[%clk 0:01:56.2]}
26... R8xc5 {[%clk 0:01:28]} 27. bxc5 {[%clk 0:01:57.9]} 27... Rxc5 {[%clk
0:01:29.5]} 28. Kf2 {[%clk 0:01:54.1]} 28... h5 {[%clk 0:01:26.2]} 29. Ne2
{[%clk 0:01:40.4]} 29... Rb5 {[%clk 0:01:19.2]} 30. Rc3 {[%clk 0:01:23]} 30...
Rb3 {[%clk 0:01:09]} 31. Rc8+ {[%clk 0:00:54.8]} 31... Kh7 {[%clk 0:01:07.2]}
32. Nf4 {[%clk 0:00:50.6]} 32... Rxa3 {[%clk 0:00:58]} 33. Nxh5 {[%clk
0:00:50.4]} 33... Be4 {[%clk 0:00:54.5]} 34. g4 {[%clk 0:00:49.3]} 34... Ra2+
{[%clk 0:00:52.4]} 35. Kg3 {[%clk 0:00:50.7]} 35... a3 {[%clk 0:00:50.4]} 36.
Rc7 {[%clk 0:00:51.4]} 36... Rg2+ {[%clk 0:00:41.3]} 37. Kf4 {[%clk 0:00:40.7]}
37... a2 {[%clk 0:00:37.9]} 38. Rxg7+ {[%clk 0:00:35.2]} 38... Kh8 {[%clk
0:00:39]} 39. Ra7 {[%clk 0:00:36.8]} 39... Bd5 {[%clk 0:00:15]} 40. Nf6 {[%clk
0:00:34.7]} 40... Rf2+ {[%clk 0:00:13.8]} 41. Kg5 {[%clk 0:00:30.4]} 41... Bf7
{[%clk 0:00:14]} 42. Rxf7 {[%clk 0:00:25.8]} 42... Rxf6 {[%clk 0:00:09.9]} 43.
Ra7 {[%clk 0:00:27]} 43... Rf2 {[%clk 0:00:10]} 44. h4 {[%clk 0:00:27.8]} 44...
Kg8 {[%clk 0:00:10.6]} 45. h5 {[%clk 0:00:29]} 45... Rb2 {[%clk 0:00:11.7]} 46.
e4 {[%clk 0:00:28.6]} 46... Re2 {[%clk 0:00:12.6]} 47. Kg6 {[%clk 0:00:26.4]}
47... Kf8 {[%clk 0:00:11.5]} 48. g5 {[%clk 0:00:27.7]} 48... Rb2 {[%clk
0:00:10.7]} 49. h6 {[%clk 0:00:26.9]} 49... Rb6+ {[%clk 0:00:11.9]} 50. Kh5
{[%clk 0:00:27.9]} 50... Kg8 {[%clk 0:00:13]} 51. Rxa2 {[%clk 0:00:26.2]} 1-0

[Event "*** MasterClass Titled Tuesday Blitz"]
[Site "Chess.com"]
[Date "2017.09.05"]
[Round "8"]
[White "Witik"]
[Black "Alexander_Moskalenko"]
[Result "1-0"]
[WhiteElo "2562"]
[BlackElo "2660"]
[TimeControl "180+2"]
[EndTime "14:58:57 PDT"]
[Termination "Witik won on time"]

1. e4 {[%clk 0:03:00]} 1... d5 {[%clk 0:03:01.9]} 2. exd5 {[%clk 0:03:00.8]}
2... Nf6 {[%clk 0:03:03.4]} 3. Nf3 {[%clk 0:03:01.7]} 3... Bg4 {[%clk 0:03:03]}
4. Be2 {[%clk 0:02:57.5]} 4... Qxd5 {[%clk 0:02:55.2]} 5. Nc3 {[%clk 0:02:56.2]}
5... Qh5 {[%clk 0:02:56.4]} 6. d4 {[%clk 0:02:50.4]} 6... Nc6 {[%clk 0:02:57.1]}
7. O-O {[%clk 0:02:29.4]} 7... O-O-O {[%clk 0:02:58.1]} 8. h3 {[%clk 0:02:22.3]}
8... e5 {[%clk 0:02:50.9]} 9. d5 {[%clk 0:01:58.7]} 9... Bc5 {[%clk 0:02:20.5]}
10. Qd3 {[%clk 0:01:45.3]} 10... Bb6 {[%clk 0:01:59.8]} 11. a4 {[%clk
0:01:30.8]} 11... Bf5 {[%clk 0:01:41.8]} 12. Qb5 {[%clk 0:01:15.7]} 12... a6
{[%clk 0:01:39.7]} 13. Qb3 {[%clk 0:01:14.5]} 13... Na5 {[%clk 0:01:41.2]} 14.
Qb4 {[%clk 0:01:13]} 14... Nxd5 {[%clk 0:01:38.2]} 15. Nxd5 {[%clk 0:01:14]}
15... Rxd5 {[%clk 0:01:40.1]} 16. c4 {[%clk 0:01:12.2]} 16... Rd7 {[%clk
0:01:27.3]} 17. c5 {[%clk 0:01:06.3]} 17... Nc6 {[%clk 0:01:23.7]} 18. Qa3
{[%clk 0:01:07.1]} 18... Bxh3 {[%clk 0:01:12]} 19. gxh3 {[%clk 0:00:51.6]} 19...
Ba5 {[%clk 0:01:12.5]} 20. Kh2 {[%clk 0:00:45.7]} 20... e4 {[%clk 0:01:13.1]}
21. Ng1 {[%clk 0:00:46.4]} 21... Qd5 {[%clk 0:01:06.9]} 22. Be3 {[%clk
0:00:39.9]} 22... Qe5+ {[%clk 0:01:01.8]} 23. Kh1 {[%clk 0:00:39.1]} 23... f5
{[%clk 0:01:03.3]} 24. f4 {[%clk 0:00:34.1]} 24... exf3 {[%clk 0:01:03.9]} 25.
Bxf3 {[%clk 0:00:33.4]} 25... Re8 {[%clk 0:00:53.8]} 26. Bf2 {[%clk 0:00:31.8]}
26... Bd2 {[%clk 0:00:51.1]} 27. Rad1 {[%clk 0:00:28.5]} 27... Qe6 {[%clk
0:00:49.7]} 28. Bg2 {[%clk 0:00:25.7]} 28... Qc4 {[%clk 0:00:48.4]} 29. Nf3
{[%clk 0:00:23.4]} 29... Bb4 {[%clk 0:00:43.7]} 30. Qa1 {[%clk 0:00:24.5]} 30...
Rxd1 {[%clk 0:00:44.4]} 31. Qxd1 {[%clk 0:00:23]} 31... Bxc5 {[%clk 0:00:46.3]}
32. Bxc5 {[%clk 0:00:20.3]} 32... Qxc5 {[%clk 0:00:48.2]} 33. Ng5 {[%clk
0:00:20.1]} 33... g6 {[%clk 0:00:39.4]} 34. Re1 {[%clk 0:00:19.8]} 34... Re7
{[%clk 0:00:38.6]} 35. Rxe7 {[%clk 0:00:17.8]} 35... Qxe7 {[%clk 0:00:40.5]} 36.
Qd2 {[%clk 0:00:17]} 36... Ne5 {[%clk 0:00:35.5]} 37. Qe3 {[%clk 0:00:16.1]}
37... c6 {[%clk 0:00:36.6]} 38. Nf3 {[%clk 0:00:15.5]} 38... Kc7 {[%clk
0:00:31.2]} 39. Qxe5+ {[%clk 0:00:16.2]} 39... Qxe5 {[%clk 0:00:32.7]} 40. Nxe5
{[%clk 0:00:16.9]} 40... Kd6 {[%clk 0:00:34.6]} 41. Nd3 {[%clk 0:00:15.6]} 41...
b5 {[%clk 0:00:34]} 42. a5 {[%clk 0:00:14.7]} 42... c5 {[%clk 0:00:35]} 43. b4
{[%clk 0:00:13.4]} 43... c4 {[%clk 0:00:35.4]} 44. Nf4 {[%clk 0:00:13.2]} 44...
Ke5 {[%clk 0:00:36.2]} 45. Ne2 {[%clk 0:00:13.2]} 45... g5 {[%clk 0:00:34.3]}
46. Bb7 {[%clk 0:00:14]} 46... h5 {[%clk 0:00:35.8]} 47. Bxa6 {[%clk 0:00:14.7]}
47... Ke4 {[%clk 0:00:37.7]} 48. Bxb5 {[%clk 0:00:15.6]} 48... Ke3 {[%clk
0:00:39.6]} 49. Bxc4 {[%clk 0:00:16.6]} 1-0